[Event "Late-Titled-Tuesday-Blitz-February-20-2024"]
[Site "Chess.com"]
[Date "2024.02.20"]
[Round "1"]
[White "PNEPaul"]
[Black "Bryanl106"]
[Result "0-1"]
[WhiteElo "1987"]
[BlackElo "2526"]
[TimeControl "180+1"]
[EndTime "14:01:32 PST"]
[Termination "Bryanl106 won by resignation"]

1. e4 {[%clk 0:03:00.9]} 1... e5 {[%clk 0:02:59.1]} 2. Nf3 {[%clk 0:03:00.6]}
2... Nc6 {[%clk 0:02:59.1]} 3. Bc4 {[%clk 0:03:00.4]} 3... Nf6 {[%clk 0:02:55]}
4. d4 {[%clk 0:02:59.6]} 4... exd4 {[%clk 0:02:53.7]} 5. O-O {[%clk 0:02:59.5]}
5... Nxe4 {[%clk 0:02:52.6]} 6. Re1 {[%clk 0:02:58.9]} 6... d5 {[%clk 0:02:53]}
7. Bxd5 {[%clk 0:02:58.9]} 7... Qxd5 {[%clk 0:02:53.9]} 8. Nc3 {[%clk
0:02:58.7]} 8... Qd7 {[%clk 0:02:53.9]} 9. Nxe4 {[%clk 0:02:58.5]} 9... Be7
{[%clk 0:02:54.1]} 10. Bg5 {[%clk 0:02:48.7]} 10... O-O {[%clk 0:02:53]} 11.
Bxe7 {[%clk 0:02:48.2]} 11... Qxe7 {[%clk 0:02:51.9]} 12. Nxd4 {[%clk
0:02:45.5]} 12... Bd7 {[%clk 0:02:51.5]} 13. c3 {[%clk 0:02:37.4]} 13... Rad8
{[%clk 0:02:49.9]} 14. Nc5 {[%clk 0:02:27.6]} 14... Qxc5 {[%clk 0:02:45.2]} 0-1

[Event "Late-Titled-Tuesday-Blitz-February-20-2024"]
[Site "Chess.com"]
[Date "2024.02.20"]
[Round "1"]
[White "Maect19"]
[Black "KChor05"]
[Result "0-1"]
[WhiteElo "2323"]
[BlackElo "2625"]
[TimeControl "180+1"]
[EndTime "14:02:03 PST"]
[Termination "KChor05 won by resignation"]

1. Nf3 {[%clk 0:03:00.9]} 1... Nf6 {[%clk 0:02:58.5]} 2. c4 {[%clk 0:02:59.8]}
2... g6 {[%clk 0:02:57.8]} 3. Nc3 {[%clk 0:02:59.2]} 3... Bg7 {[%clk 0:02:58.7]}
4. g3 {[%clk 0:02:59.1]} 4... O-O {[%clk 0:02:59.6]} 5. Bg2 {[%clk 0:02:59]}
5... d6 {[%clk 0:03:00.3]} 6. O-O {[%clk 0:02:58.9]} 6... c5 {[%clk 0:02:59.1]}
7. d3 {[%clk 0:02:58.3]} 7... Nc6 {[%clk 0:02:59.5]} 8. Rb1 {[%clk 0:02:58.2]}
8... Rb8 {[%clk 0:02:59]} 9. a3 {[%clk 0:02:58.3]} 9... a5 {[%clk 0:02:59.6]}
10. Bd2 {[%clk 0:02:50.6]} 10... Ne8 {[%clk 0:02:58]} 11. Nb5 {[%clk 0:02:48.4]}
11... Nc7 {[%clk 0:02:56.1]} 12. Qa4 {[%clk 0:02:35.7]} 12... Bd7 {[%clk
0:02:48.9]} 13. Qxa5 {[%clk 0:02:01.5]} 13... Nxa5 {[%clk 0:02:37.9]} 0-1

[Event "Late-Titled-Tuesday-Blitz-February-20-2024"]
[Site "Chess.com"]
[Date "2024.02.20"]
[Round "1"]
[White "Jahonas"]
[Black "ArtemDyachuk"]
[Result "0-1"]
[WhiteElo "2349"]
[BlackElo "2653"]
[TimeControl "180+1"]
[EndTime "14:02:20 PST"]
[Termination "ArtemDyachuk won by resignation"]

1. d4 {[%clk 0:02:59.3]} 1... d5 {[%clk 0:02:59.1]} 2. Nf3 {[%clk 0:02:57.4]}
2... Nf6 {[%clk 0:02:58.4]} 3. g3 {[%clk 0:02:57.7]} 3... Bf5 {[%clk 0:02:56]}
4. Bg2 {[%clk 0:02:57.6]} 4... e6 {[%clk 0:02:56.4]} 5. O-O {[%clk 0:02:57.6]}
5... c6 {[%clk 0:02:56.9]} 6. Nbd2 {[%clk 0:02:52.3]} 6... h6 {[%clk 0:02:56.4]}
7. Ne5 {[%clk 0:02:51.7]} 7... Nbd7 {[%clk 0:02:56.5]} 8. Ndf3 {[%clk
0:02:50.8]} 8... Bd6 {[%clk 0:02:55.6]} 9. Nxd7 {[%clk 0:02:50.3]} 9... Qxd7
{[%clk 0:02:54.8]} 10. Bf4 {[%clk 0:02:50.2]} 10... Bxf4 {[%clk 0:02:53.8]} 11.
gxf4 {[%clk 0:02:50.2]} 11... g5 {[%clk 0:02:47.8]} 12. fxg5 {[%clk 0:02:46.1]}
12... hxg5 {[%clk 0:02:48]} 13. Ne5 {[%clk 0:02:45.8]} 13... Qc7 {[%clk
0:02:48.2]} 14. f4 {[%clk 0:02:37.9]} 14... gxf4 {[%clk 0:02:46.4]} 15. Rxf4
{[%clk 0:02:36.5]} 15... O-O-O {[%clk 0:02:46.9]} 16. e3 {[%clk 0:02:30.6]}
16... Rdg8 {[%clk 0:02:45.9]} 17. Rxf5 {[%clk 0:02:13.1]} 17... exf5 {[%clk
0:02:45.2]} 18. Qf3 {[%clk 0:02:13.2]} 18... Rg5 {[%clk 0:02:42.4]} 19. Kh1
{[%clk 0:02:04.9]} 19... Ne4 {[%clk 0:02:41.2]} 20. Bh3 {[%clk 0:02:01.4]} 20...
Rxh3 {[%clk 0:02:39.8]} 0-1

[Event "Late-Titled-Tuesday-Blitz-February-20-2024"]
[Site "Chess.com"]
[Date "2024.02.20"]
[Round "1"]
[White "jsdbv18"]
[Black "adwilhans"]
[Result "1-0"]
[WhiteElo "2622"]
[BlackElo "2321"]
[TimeControl "180+1"]
[EndTime "14:02:27 PST"]
[Termination "jsdbv18 won by resignation"]

1. d4 {[%clk 0:02:59.8]} 1... Nf6 {[%clk 0:02:51.3]} 2. Nf3 {[%clk 0:02:59.8]}
2... g6 {[%clk 0:02:51]} 3. Bg5 {[%clk 0:02:57.3]} 3... Bg7 {[%clk 0:02:50.4]}
4. Nbd2 {[%clk 0:02:57.7]} 4... d5 {[%clk 0:02:49.4]} 5. e3 {[%clk 0:02:57.7]}
5... b6 {[%clk 0:02:46.5]} 6. Bd3 {[%clk 0:02:55.4]} 6... Bb7 {[%clk 0:02:46]}
7. O-O {[%clk 0:02:54.5]} 7... O-O {[%clk 0:02:45.3]} 8. Ne5 {[%clk 0:02:54.4]}
8... Nbd7 {[%clk 0:02:34.1]} 9. f4 {[%clk 0:02:50.8]} 9... Nxe5 {[%clk
0:02:28.8]} 10. fxe5 {[%clk 0:02:50.5]} 10... Ne4 {[%clk 0:02:28.9]} 11. Nxe4
{[%clk 0:02:42.9]} 11... dxe4 {[%clk 0:02:29]} 12. Bc4 {[%clk 0:02:43.5]} 12...
Qe8 {[%clk 0:02:11.3]} 13. Qg4 {[%clk 0:02:38.4]} 13... Kh8 {[%clk 0:02:01.3]}
14. Qh4 {[%clk 0:02:36.2]} 14... c5 {[%clk 0:01:55.2]} 15. Bxe7 {[%clk
0:02:34.6]} 1-0

[Event "Late-Titled-Tuesday-Blitz-February-20-2024"]
[Site "Chess.com"]
[Date "2024.02.20"]
[Round "1"]
[White "TenisMaster"]
[Black "giomar27"]
[Result "1-0"]
[WhiteElo "2938"]
[BlackElo "2472"]
[TimeControl "180+1"]
[EndTime "14:02:38 PST"]
[Termination "TenisMaster won by resignation"]

1. e4 {[%clk 0:02:59.2]} 1... g6 {[%clk 0:02:59.1]} 2. d4 {[%clk 0:02:58.8]}
2... Bg7 {[%clk 0:02:59.8]} 3. Nc3 {[%clk 0:02:59.1]} 3... a6 {[%clk 0:03:00.4]}
4. h4 {[%clk 0:02:58.4]} 4... h6 {[%clk 0:02:39.5]} 5. f4 {[%clk 0:02:54.5]}
5... Nf6 {[%clk 0:02:33.3]} 6. e5 {[%clk 0:02:43.1]} 6... Nh5 {[%clk 0:02:33]}
7. Qf3 {[%clk 0:02:41.3]} 7... f5 {[%clk 0:02:12.2]} 8. g4 {[%clk 0:02:32.2]}
8... fxg4 {[%clk 0:02:12.2]} 9. Qxg4 {[%clk 0:02:32.7]} 9... O-O {[%clk
0:02:10.8]} 10. Bd3 {[%clk 0:02:30.4]} 10... d6 {[%clk 0:01:35.3]} 11. Qxg6
{[%clk 0:02:29.3]} 11... Nxf4 {[%clk 0:01:35]} 12. Qh7+ {[%clk 0:02:29.1]} 12...
Kf7 {[%clk 0:01:35.4]} 13. Bxf4 {[%clk 0:02:29.2]} 1-0

[Event "Late-Titled-Tuesday-Blitz-February-20-2024"]
[Site "Chess.com"]
[Date "2024.02.20"]
[Round "1"]
[White "el_sporco"]
[Black "klimkoj"]
[Result "0-1"]
[WhiteElo "2460"]
[BlackElo "2895"]
[TimeControl "180+1"]
[EndTime "14:02:40 PST"]
[Termination "klimkoj won by resignation"]

1. e4 {[%clk 0:02:59.7]} 1... c5 {[%clk 0:02:43.8]} 2. Nf3 {[%clk 0:02:59]} 2...
d6 {[%clk 0:02:41.3]} 3. d4 {[%clk 0:02:58.8]} 3... cxd4 {[%clk 0:02:42.2]} 4.
Nxd4 {[%clk 0:02:59.7]} 4... Nf6 {[%clk 0:02:39.3]} 5. Nc3 {[%clk 0:03:00.3]}
5... a6 {[%clk 0:02:39.5]} 6. Bg5 {[%clk 0:03:00.3]} 6... e6 {[%clk 0:02:36.8]}
7. f4 {[%clk 0:03:00.5]} 7... Be7 {[%clk 0:02:36.9]} 8. Qf3 {[%clk 0:03:00.8]}
8... Qc7 {[%clk 0:02:37.3]} 9. O-O-O {[%clk 0:03:00.8]} 9... b5 {[%clk
0:02:35.7]} 10. e5 {[%clk 0:02:44.7]} 10... Bb7 {[%clk 0:02:31.4]} 11. exd6
{[%clk 0:02:41.5]} 11... Bxd6 {[%clk 0:02:20.8]} 12. Ndxb5 {[%clk 0:02:39.1]}
12... axb5 {[%clk 0:02:16.7]} 13. Nxb5 {[%clk 0:02:40]} 13... Bxf3 {[%clk
0:02:16.7]} 14. Nxc7+ {[%clk 0:02:40.1]} 14... Bxc7 {[%clk 0:02:17.2]} 15. gxf3
{[%clk 0:02:40.3]} 15... Rxa2 {[%clk 0:02:15.1]} 16. Bb5+ {[%clk 0:02:33.5]}
16... Ke7 {[%clk 0:02:12.9]} 17. b3 {[%clk 0:02:26.3]} 17... h6 {[%clk
0:02:04.5]} 18. Bxf6+ {[%clk 0:02:23.9]} 18... gxf6 {[%clk 0:01:59.5]} 19. Ba4
{[%clk 0:02:24.8]} 19... Ra1+ {[%clk 0:01:57.5]} 0-1

[Event "Late-Titled-Tuesday-Blitz-February-20-2024"]
[Site "Chess.com"]
[Date "2024.02.20"]
[Round "1"]
[White "ridnani1"]
[Black "traviscottofficial"]
[Result "0-1"]
[WhiteElo "2383"]
[BlackElo "2722"]
[TimeControl "180+1"]
[EndTime "14:02:48 PST"]
[Termination "traviscottofficial won by resignation"]

1. e4 {[%clk 0:03:00.9]} 1... d6 {[%clk 0:02:58.4]} 2. d4 {[%clk 0:03:00.7]}
2... Nf6 {[%clk 0:02:59]} 3. Nc3 {[%clk 0:03:00.6]} 3... e5 {[%clk 0:02:58.3]}
4. dxe5 {[%clk 0:03:00.4]} 4... dxe5 {[%clk 0:02:59.2]} 5. Qxd8+ {[%clk
0:03:00.2]} 5... Kxd8 {[%clk 0:03:00.1]} 6. Bc4 {[%clk 0:03:00.2]} 6... Be6
{[%clk 0:02:57.9]} 7. Bxe6 {[%clk 0:02:59.7]} 7... fxe6 {[%clk 0:02:58.8]} 8.
Nf3 {[%clk 0:02:59.9]} 8... Nc6 {[%clk 0:02:58.1]} 9. Be3 {[%clk 0:02:58.6]}
9... Bb4 {[%clk 0:02:57.3]} 10. O-O-O+ {[%clk 0:02:49.1]} 10... Ke7 {[%clk
0:02:57.3]} 11. Bg5 {[%clk 0:02:48.4]} 11... Rad8 {[%clk 0:02:51.8]} 12. Rxd8
{[%clk 0:02:42.7]} 12... Rxd8 {[%clk 0:02:51.2]} 13. Ne2 {[%clk 0:02:40.9]}
13... Kf7 {[%clk 0:02:48.5]} 14. Bxf6 {[%clk 0:02:31.8]} 14... gxf6 {[%clk
0:02:49.4]} 15. Rd1 {[%clk 0:02:26.1]} 15... Rxd1+ {[%clk 0:02:34.6]} 16. Kxd1
{[%clk 0:02:27]} 16... Bc5 {[%clk 0:02:35.5]} 17. Ke1 {[%clk 0:02:26.2]} 17...
Nb4 {[%clk 0:02:36]} 18. Nc3 {[%clk 0:02:12]} 18... Nxc2+ {[%clk 0:02:33.9]} 19.
Ke2 {[%clk 0:02:11.5]} 19... Nd4+ {[%clk 0:02:26.5]} 20. Ke3 {[%clk 0:02:01.6]}
20... Nxf3+ {[%clk 0:02:15]} 21. Kxf3 {[%clk 0:02:02.5]} 21... Bd4 {[%clk
0:02:15.2]} 0-1

[Event "Late-Titled-Tuesday-Blitz-February-20-2024"]
[Site "Chess.com"]
[Date "2024.02.20"]
[Round "1"]
[White "Mops_2004"]
[Black "Joachim100x"]
[Result "1-0"]
[WhiteElo "2769"]
[BlackElo "2404"]
[TimeControl "180+1"]
[EndTime "14:02:58 PST"]
[Termination "Mops_2004 won by resignation"]

1. g3 {[%clk 0:03:00.9]} 1... d5 {[%clk 0:02:59.4]} 2. Nf3 {[%clk 0:03:00.7]}
2... e6 {[%clk 0:02:59.8]} 3. Bg2 {[%clk 0:03:00.6]} 3... Nf6 {[%clk 0:03:00.4]}
4. O-O {[%clk 0:03:01]} 4... Be7 {[%clk 0:03:00.8]} 5. d3 {[%clk 0:03:01.3]}
5... O-O {[%clk 0:03:00.9]} 6. Bf4 {[%clk 0:03:02]} 6... c5 {[%clk 0:03:01.1]}
7. a4 {[%clk 0:03:02.6]} 7... Nc6 {[%clk 0:03:01.4]} 8. e4 {[%clk 0:03:03.4]}
8... dxe4 {[%clk 0:03:01.3]} 9. dxe4 {[%clk 0:03:04.3]} 9... Qxd1 {[%clk
0:02:54.4]} 10. Rxd1 {[%clk 0:03:05.2]} 10... Nxe4 {[%clk 0:02:53.1]} 11. Ne5
{[%clk 0:03:05.9]} 11... Nxe5 {[%clk 0:02:51.3]} 12. Bxe5 {[%clk 0:03:06.8]}
12... Nf6 {[%clk 0:02:51.2]} 13. a5 {[%clk 0:03:06.5]} 13... a6 {[%clk
0:02:50.8]} 14. Na3 {[%clk 0:03:06.4]} 14... Nd5 {[%clk 0:02:48.4]} 15. Nc4
{[%clk 0:03:05.2]} 15... Bd7 {[%clk 0:02:35.7]} 16. Nb6 {[%clk 0:03:04.9]} 16...
Nxb6 {[%clk 0:02:35.5]} 17. axb6 {[%clk 0:03:05.8]} 17... Bc8 {[%clk 0:02:29.8]}
18. Bd6 {[%clk 0:03:05.7]} 18... Bxd6 {[%clk 0:02:27]} 19. Rxd6 {[%clk
0:03:06.6]} 19... Re8 {[%clk 0:02:27.6]} 20. Ra5 {[%clk 0:03:05.7]} 20... e5
{[%clk 0:02:19.4]} 21. Rxc5 {[%clk 0:03:04.6]} 21... a5 {[%clk 0:02:16.6]} 22.
Rxe5 {[%clk 0:02:54.2]} 22... Be6 {[%clk 0:02:13.7]} 23. Bxb7 {[%clk 0:02:52.5]}
23... Rab8 {[%clk 0:02:13.9]} 24. Bd5 {[%clk 0:02:49.2]} 24... Bh3 {[%clk
0:01:49.3]} 25. Rxe8+ {[%clk 0:02:31.5]} 25... Rxe8 {[%clk 0:01:49.3]} 26. f4
{[%clk 0:02:32.4]} 1-0

[Event "Late-Titled-Tuesday-Blitz-February-20-2024"]
[Site "Chess.com"]
[Date "2024.02.20"]
[Round "1"]
[White "Navyblue1"]
[Black "Casper"]
[Result "0-1"]
[WhiteElo "2192"]
[BlackElo "2560"]
[TimeControl "180+1"]
[EndTime "14:03:35 PST"]
[Termination "Casper won by resignation"]

1. d4 {[%clk 0:02:59.6]} 1... Nc6 {[%clk 0:02:57.4]} 2. c4 {[%clk 0:02:58.9]}
2... e5 {[%clk 0:02:57.4]} 3. d5 {[%clk 0:02:54.6]} 3... Nce7 {[%clk 0:02:56.5]}
4. c5 {[%clk 0:02:45]} 4... Ng6 {[%clk 0:02:53.6]} 5. Qc2 {[%clk 0:02:42]} 5...
Nf6 {[%clk 0:02:49.9]} 6. e4 {[%clk 0:02:41.3]} 6... d6 {[%clk 0:02:44.6]} 7.
Be3 {[%clk 0:02:38.9]} 7... dxc5 {[%clk 0:02:42.8]} 8. Nd2 {[%clk 0:02:19.6]}
8... b6 {[%clk 0:02:32.3]} 9. Rc1 {[%clk 0:02:11.5]} 9... Bd6 {[%clk 0:02:30.5]}
10. Ngf3 {[%clk 0:02:06]} 10... O-O {[%clk 0:02:29.6]} 11. Be2 {[%clk
0:02:02.1]} 11... Nh5 {[%clk 0:02:27.7]} 12. g3 {[%clk 0:02:00.1]} 12... f5
{[%clk 0:02:26.3]} 13. Ng5 {[%clk 0:01:48.1]} 13... f4 {[%clk 0:02:21.6]} 14.
Bxh5 {[%clk 0:01:43.3]} 14... fxe3 {[%clk 0:02:20.8]} 15. Bxg6 {[%clk
0:01:42.2]} 15... Qxg5 {[%clk 0:02:15.1]} 16. Bf5 {[%clk 0:01:30.5]} 16... exd2+
{[%clk 0:02:11.9]} 17. Qxd2 {[%clk 0:01:25.3]} 17... Qxd2+ {[%clk 0:02:12.8]}
18. Kxd2 {[%clk 0:01:24.8]} 18... Bxf5 {[%clk 0:02:13.6]} 19. exf5 {[%clk
0:01:24]} 19... Rxf5 {[%clk 0:02:14.5]} 20. Rhf1 {[%clk 0:01:17.1]} 20... e4
{[%clk 0:02:13.4]} 21. Ke2 {[%clk 0:01:15.4]} 21... Rxd5 {[%clk 0:02:13.2]} 22.
Rc4 {[%clk 0:01:14.4]} 22... Rd4 {[%clk 0:02:11.6]} 0-1

[Event "Late-Titled-Tuesday-Blitz-February-20-2024"]
[Site "Chess.com"]
[Date "2024.02.20"]
[Round "1"]
[White "DonMicheleCorleone"]
[Black "NikoTheodorou"]
[Result "0-1"]
[WhiteElo "2507"]
[BlackElo "3064"]
[TimeControl "180+1"]
[EndTime "14:03:43 PST"]
[Termination "NikoTheodorou won by resignation"]

1. e4 {[%clk 0:02:54.3]} 1... b6 {[%clk 0:03:00.9]} 2. d4 {[%clk 0:02:53.4]}
2... Bb7 {[%clk 0:03:01.6]} 3. Bd3 {[%clk 0:02:52.5]} 3... d6 {[%clk 0:03:02.5]}
4. Nc3 {[%clk 0:02:51]} 4... Nd7 {[%clk 0:03:03.2]} 5. Nf3 {[%clk 0:02:50.9]}
5... e5 {[%clk 0:03:03.9]} 6. O-O {[%clk 0:02:49.4]} 6... Ngf6 {[%clk
0:03:04.4]} 7. Bg5 {[%clk 0:02:47.7]} 7... Be7 {[%clk 0:03:04.3]} 8. Qd2 {[%clk
0:02:46.9]} 8... O-O {[%clk 0:03:04.4]} 9. Rad1 {[%clk 0:02:45.8]} 9... exd4
{[%clk 0:03:04.4]} 10. Nxd4 {[%clk 0:02:45.3]} 10... Re8 {[%clk 0:03:05.2]} 11.
Nf5 {[%clk 0:02:44.4]} 11... Bf8 {[%clk 0:03:01.2]} 12. Nd5 {[%clk 0:02:43.3]}
12... h6 {[%clk 0:02:47.8]} 13. Bh4 {[%clk 0:02:30.8]} 13... Re5 {[%clk
0:02:30.7]} 14. f4 {[%clk 0:02:25.6]} 14... Rxf5 {[%clk 0:02:31]} 15. Nxf6+
{[%clk 0:02:20.1]} 15... Rxf6 {[%clk 0:02:31.5]} 16. e5 {[%clk 0:02:16.2]} 16...
dxe5 {[%clk 0:02:32.4]} 17. Bxf6 {[%clk 0:02:14.3]} 17... Qxf6 {[%clk
0:02:18.2]} 18. Bc4 {[%clk 0:02:14.4]} 18... Qg6 {[%clk 0:01:53.6]} 19. f5
{[%clk 0:02:14.5]} 19... Qd6 {[%clk 0:01:49.5]} 20. Qe2 {[%clk 0:02:06.3]} 20...
Qc5+ {[%clk 0:01:47]} 21. Kh1 {[%clk 0:02:06.5]} 21... Nf6 {[%clk 0:01:47.8]}
22. b3 {[%clk 0:01:56.5]} 22... e4 {[%clk 0:01:45.1]} 23. Rd2 {[%clk 0:01:43.9]}
23... Bd6 {[%clk 0:01:44.5]} 24. Rfd1 {[%clk 0:01:43]} 24... Qe5 {[%clk
0:01:43.7]} 0-1

[Event "Late-Titled-Tuesday-Blitz-February-20-2024"]
[Site "Chess.com"]
[Date "2024.02.20"]
[Round "1"]
[White "koziororo"]
[Black "cristiano78"]
[Result "1-0"]
[WhiteElo "2599"]
[BlackElo "2251"]
[TimeControl "180+1"]
[EndTime "14:03:46 PST"]
[Termination "koziororo won by resignation"]

1. Nc3 {[%clk 0:02:58.2]} 1... Nf6 {[%clk 0:02:55]} 2. e4 {[%clk 0:02:57.7]}
2... d6 {[%clk 0:02:54.5]} 3. d4 {[%clk 0:02:57.5]} 3... g6 {[%clk 0:02:46.8]}
4. f3 {[%clk 0:02:55.6]} 4... Bg7 {[%clk 0:02:46.2]} 5. Be3 {[%clk 0:02:56.2]}
5... O-O {[%clk 0:02:30.1]} 6. Qd2 {[%clk 0:02:54.8]} 6... Nbd7 {[%clk
0:02:28.5]} 7. h4 {[%clk 0:02:54.6]} 7... h5 {[%clk 0:02:24.8]} 8. Nh3 {[%clk
0:02:54.8]} 8... e5 {[%clk 0:02:22.3]} 9. O-O-O {[%clk 0:02:52.4]} 9... Qe7
{[%clk 0:02:13.6]} 10. Ng5 {[%clk 0:02:51.4]} 10... exd4 {[%clk 0:02:09.1]} 11.
Bxd4 {[%clk 0:02:52.3]} 11... Ne5 {[%clk 0:02:09.2]} 12. Be2 {[%clk 0:02:43.6]}
12... b6 {[%clk 0:01:59.6]} 13. Rdg1 {[%clk 0:02:40.9]} 13... c5 {[%clk
0:01:54.7]} 14. Be3 {[%clk 0:02:36.5]} 14... Bb7 {[%clk 0:01:47.9]} 15. g4
{[%clk 0:02:34.3]} 15... a6 {[%clk 0:01:44.2]} 16. gxh5 {[%clk 0:02:29.9]} 16...
Nxh5 {[%clk 0:01:43.8]} 17. f4 {[%clk 0:02:29.7]} 17... Nd7 {[%clk 0:01:36.6]}
18. Bxh5 {[%clk 0:02:29.7]} 18... gxh5 {[%clk 0:01:36.5]} 19. Qg2 {[%clk
0:02:23]} 19... f6 {[%clk 0:01:27]} 20. Ne6 {[%clk 0:02:22.5]} 20... Rf7 {[%clk
0:01:26.9]} 21. f5 {[%clk 0:02:17.6]} 21... Kh8 {[%clk 0:01:20.3]} 22. Qg6
{[%clk 0:02:16.9]} 22... Ne5 {[%clk 0:01:16.7]} 23. Qxh5+ {[%clk 0:02:16.6]}
23... Kg8 {[%clk 0:01:16.8]} 24. Bh6 {[%clk 0:02:15.9]} 1-0

[Event "Late-Titled-Tuesday-Blitz-February-20-2024"]
[Site "Chess.com"]
[Date "2024.02.20"]
[Round "1"]
[White "diskeleven"]
[Black "BlueWizzard"]
[Result "0-1"]
[WhiteElo "2453"]
[BlackElo "2883"]
[TimeControl "180+1"]
[EndTime "14:03:51 PST"]
[Termination "BlueWizzard won by resignation"]

1. Nf3 {[%clk 0:03:00.9]} 1... g6 {[%clk 0:03:00.9]} 2. e4 {[%clk 0:03:00]} 2...
Bg7 {[%clk 0:03:01.6]} 3. d4 {[%clk 0:03:00.1]} 3... d5 {[%clk 0:03:02.3]} 4.
exd5 {[%clk 0:02:57.4]} 4... Qxd5 {[%clk 0:03:03.2]} 5. Nc3 {[%clk 0:02:57]}
5... Qd8 {[%clk 0:03:03.7]} 6. Bc4 {[%clk 0:02:55]} 6... Nh6 {[%clk 0:03:03.3]}
7. h3 {[%clk 0:02:53.5]} 7... Nf5 {[%clk 0:03:03.2]} 8. d5 {[%clk 0:02:52.7]}
8... c6 {[%clk 0:03:03.2]} 9. Bg5 {[%clk 0:02:49.6]} 9... O-O {[%clk 0:03:00.8]}
10. dxc6 {[%clk 0:02:48.8]} 10... Nxc6 {[%clk 0:02:59.6]} 11. Qxd8 {[%clk
0:02:48.2]} 11... Rxd8 {[%clk 0:03:00.5]} 12. O-O {[%clk 0:02:46.6]} 12... h6
{[%clk 0:02:59.6]} 13. Bf4 {[%clk 0:02:43.2]} 13... e5 {[%clk 0:02:55.6]} 14.
Bd2 {[%clk 0:02:35]} 14... Nfd4 {[%clk 0:02:55.3]} 15. Nxd4 {[%clk 0:02:23.5]}
15... Nxd4 {[%clk 0:02:55]} 16. Nd5 {[%clk 0:02:17.7]} 16... Be6 {[%clk
0:02:50.6]} 17. Ne7+ {[%clk 0:01:55.9]} 17... Kh7 {[%clk 0:02:49.7]} 18. Bxe6
{[%clk 0:01:49.1]} 18... fxe6 {[%clk 0:02:49.2]} 19. Bb4 {[%clk 0:00:41.8]}
19... Nxc2 {[%clk 0:02:44.2]} 20. Ba3 {[%clk 0:00:42]} 20... Nxa3 {[%clk
0:02:26.6]} 21. bxa3 {[%clk 0:00:41.3]} 21... Bf8 {[%clk 0:02:27.1]} 0-1

[Event "Late-Titled-Tuesday-Blitz-February-20-2024"]
[Site "Chess.com"]
[Date "2024.02.20"]
[Round "1"]
[White "ACollins05"]
[Black "miraitrunks"]
[Result "1-0"]
[WhiteElo "2569"]
[BlackElo "2207"]
[TimeControl "180+1"]
[EndTime "14:04:12 PST"]
[Termination "ACollins05 won by resignation"]

1. d4 {[%clk 0:02:54.1]} 1... d5 {[%clk 0:02:57.5]} 2. c4 {[%clk 0:02:53.4]}
2... Bf5 {[%clk 0:02:54.2]} 3. cxd5 {[%clk 0:02:52]} 3... Bxb1 {[%clk
0:02:43.1]} 4. Rxb1 {[%clk 0:02:52.9]} 4... Qxd5 {[%clk 0:02:42.3]} 5. a3 {[%clk
0:02:49.6]} 5... e5 {[%clk 0:02:40.4]} 6. Nf3 {[%clk 0:02:47.6]} 6... Nc6 {[%clk
0:02:36.9]} 7. dxe5 {[%clk 0:02:41.2]} 7... Qxd1+ {[%clk 0:02:36.5]} 8. Kxd1
{[%clk 0:02:42.1]} 8... O-O-O+ {[%clk 0:02:35.8]} 9. Kc2 {[%clk 0:02:42.2]} 9...
Nge7 {[%clk 0:02:35.5]} 10. Bf4 {[%clk 0:02:41.3]} 10... Ng6 {[%clk 0:02:34.4]}
11. Bg3 {[%clk 0:02:41.5]} 11... h5 {[%clk 0:02:34.5]} 12. h3 {[%clk 0:02:41.1]}
12... Bc5 {[%clk 0:02:28.8]} 13. e3 {[%clk 0:02:41]} 13... Rhe8 {[%clk
0:02:28.5]} 14. Bb5 {[%clk 0:02:38.4]} 14... Re6 {[%clk 0:02:25]} 15. Ng5 {[%clk
0:02:27.5]} 15... Re7 {[%clk 0:02:04.2]} 16. Bxc6 {[%clk 0:02:26.5]} 16... bxc6
{[%clk 0:02:04.6]} 17. Nf3 {[%clk 0:02:25.9]} 17... Rd5 {[%clk 0:02:00.4]} 18.
Rbd1 {[%clk 0:02:24.6]} 18... Kd7 {[%clk 0:01:42.6]} 19. b4 {[%clk 0:02:09.8]}
19... Bb6 {[%clk 0:01:41.6]} 20. Nd4 {[%clk 0:02:01.1]} 20... Nxe5 {[%clk
0:01:12.2]} 21. Nf5 {[%clk 0:01:57.8]} 21... Re6 {[%clk 0:01:00]} 22. Nxg7
{[%clk 0:01:56.9]} 22... Rg6 {[%clk 0:01:00.1]} 23. Bxe5 {[%clk 0:01:54.5]} 1-0

[Event "Late-Titled-Tuesday-Blitz-February-20-2024"]
[Site "Chess.com"]
[Date "2024.02.20"]
[Round "1"]
[White "manitodeplomo"]
[Black "elchacal664"]
[Result "1-0"]
[WhiteElo "2656"]
[BlackElo "2352"]
[TimeControl "180+1"]
[EndTime "14:04:29 PST"]
[Termination "manitodeplomo won by resignation"]

1. d4 {[%clk 0:02:58]} 1... d5 {[%clk 0:02:51.9]} 2. c4 {[%clk 0:02:55.4]} 2...
dxc4 {[%clk 0:02:52.8]} 3. Nf3 {[%clk 0:02:54.7]} 3... Nf6 {[%clk 0:02:51.9]} 4.
e3 {[%clk 0:02:54.4]} 4... e6 {[%clk 0:02:52.4]} 5. Bxc4 {[%clk 0:02:54.5]} 5...
c5 {[%clk 0:02:51.5]} 6. Nc3 {[%clk 0:02:54.3]} 6... cxd4 {[%clk 0:02:50.7]} 7.
exd4 {[%clk 0:02:54]} 7... Be7 {[%clk 0:02:48.1]} 8. O-O {[%clk 0:02:54.5]} 8...
O-O {[%clk 0:02:48.5]} 9. Re1 {[%clk 0:02:53.9]} 9... a6 {[%clk 0:02:47.9]} 10.
d5 {[%clk 0:02:48.3]} 10... b5 {[%clk 0:02:32.6]} 11. Bb3 {[%clk 0:02:47.4]}
11... b4 {[%clk 0:02:26.3]} 12. dxe6 {[%clk 0:02:37.6]} 12... bxc3 {[%clk
0:01:58.2]} 13. exf7+ {[%clk 0:02:36.4]} 13... Kh8 {[%clk 0:01:57.1]} 14. Qxd8
{[%clk 0:02:34.6]} 14... Bxd8 {[%clk 0:01:56.9]} 15. bxc3 {[%clk 0:02:35.2]}
15... Nc6 {[%clk 0:01:46.4]} 16. Ba3 {[%clk 0:02:34.4]} 16... Nd7 {[%clk
0:01:15.3]} 17. Bd5 {[%clk 0:02:17.8]} 17... Bb7 {[%clk 0:01:01.6]} 18. Rab1
{[%clk 0:02:13.1]} 18... Bb6 {[%clk 0:00:54.4]} 19. Bxf8 {[%clk 0:01:59.4]}
19... Rxf8 {[%clk 0:00:51.6]} 20. Re8 {[%clk 0:01:58.6]} 1-0